bitfinex-derivatives/quotes_BNBF0:USTF0_20250309
["timestamp","ask_amount","ask_price","bid_price","bid_amount"]
[1741547850220,1.06293904,558.19,557.23,0.35891822]
[1741547850420,4.70597759,558.18,557.24,0.29947617]
[1741547850625,8.1102294,558.17,557.24,0.29947617]
[1741547850820,8.1102294,558.16,557.24,0.29947617]
[1741547851021,8.1102294,558.15,557.23,0.35891822]
[1741547851224,7.5725402,558.14,557.24,0.29947046]
[1741547851521,8.25833062,558.13,557.24,0.29947046]
[1741547851726,4.70597759,558.12,557.24,0.29947046]
[1741547851930,4.70597759,558.11,557.24,0.29947046]
[1741547852121,4.70597759,558.1,557.24,0.29947046]
[1741547852320,4.70597759,558.09,557.24,0.29947046]
[1741547852621,4.70597759,558.08,557.24,0.29947046]
[1741547852827,4.69929612,558.07,557.24,0.29947046]
[1741547853026,4.69571476,558.06,557.24,0.29947046]
[1741547853224,4.69571476,558.05,557.24,0.29947046]
[1741547853428,1.11665639,558.04,557.24,0.29947046]
[1741547853729,1.11665639,558.03,557.24,0.29947046]
[1741547854025,1.11665639,558.02,557.24,0.29947046]
[1741547854220,1.11665639,558.01,557.24,0.29947046]
[1741547854423,1.11665639,558.0,557.23,0.35891822]
[1741547854726,1.11665639,557.99,557.24,0.29946818]
[1741547854922,0.31210902,557.99,557.24,0.29946818]
[1741547855124,1.11491854,557.98,557.24,0.29946818]
[1741547855325,1.11491854,557.97,557.24,0.29946818]
[1741547855521,1.11491854,557.98,557.24,0.29946818]
[1741547855727,1.11491854,557.97,557.24,0.29946818]
[1741547856023,2.90739752,557.96,557.23,0.35891822]
[1741547856229,1.78400384,557.98,557.23,0.35891822]
[1741547856230,8.09727668,557.95,557.23,0.35891822]
[1741547856528,4.69140136,557.94,557.23,0.35891822]
[1741547856726,8.22740516,557.93,557.23,0.35891822]
[1741547856928,4.69140136,557.92,557.23,0.35891822]
[1741547857129,1.11491854,557.91,557.23,0.35891822]
[1741547857327,1.11491854,557.9,557.23,0.35891822]
[1741547857523,1.11491854,557.89,557.24,0.29951171]
[1741547857726,1.11491854,557.88,557.24,0.29951171]
[1741547857926,2.90757121,557.87,557.23,0.35891822]
[1741547858129,2.90757121,557.86,557.23,0.35891822]
[1741547858325,2.90757121,557.85,557.23,0.35891822]
[1741547858627,6.05512014,557.84,557.23,0.35891822]
[1741547858832,4.68926201,557.83,557.23,0.35891822]
[1741547859030,4.68926201,557.82,557.23,0.35891822]
[1741547859227,4.68926201,557.81,557.23,0.35891822]
[1741547859420,4.68926201,557.8,557.23,0.35891822]
[1741547859622,8.09666811,557.79,557.23,0.35891822]
[1741547859829,8.09672931,557.78,557.23,0.35891822]
[1741547860029,5.2272735,557.77,557.23,0.35891822]
[1741547860228,3.8447221,557.78,557.23,0.35891822]
[1741547860229,5.22727925,557.76,557.23,0.35891822]
[1741547860429,6.05543751,557.75,557.23,0.35891822]
[1741547860728,5.22279752,557.74,557.23,0.35891822]
[1741547860924,8.0925894,557.73,557.23,0.35891822]
[1741547861128,8.0925894,557.72,557.23,0.35891822]
[1741547861326,8.0925894,557.71,557.23,0.35891822]
[1741547861531,8.0925894,557.7,557.23,0.35891822]
[1741547861830,8.0925894,557.69,557.23,0.35891822]
[1741547862031,8.0925894,557.68,557.23,0.35891822]
[1741547862230,8.0925894,557.67,557.23,0.35891822]
[1741547862431,8.0925894,557.66,557.23,0.35891822]
[1741547862630,8.0925894,557.65,557.23,0.35891822]
[1741547862827,8.0925894,557.64,557.23,0.35891822]
[1741547863032,8.0925894,557.63,557.23,0.35891822]
[1741547863232,8.0925894,557.62,557.23,0.35891822]
[1741547863435,8.09452394,557.61,555.68,1.32397652]
[1741547863625,8.09452394,557.6,555.7,0.35990642]
[1741547863830,8.09452394,557.59,555.71,0.299779]
[1741547864126,11.62567085,557.58,555.72,0.299779]
[1741547864432,8.09452394,557.57,555.73,0.299779]
[1741547864633,8.08269603,557.56,555.74,0.299779]
[1741547864832,8.08269603,557.55,555.75,0.299779]
[1741547865034,4.66469646,557.54,555.76,0.299779]
[1741547865334,8.08002669,557.53,555.7,0.35990642]
[1741547865532,4.67118802,557.52,555.71,0.29979975]
[1741547865732,7.54199882,557.51,555.71,0.29979975]
[1741547865933,2.877074,557.5,555.72,0.29979975]
[1741547866134,2.877074,557.49,555.73,0.29979975]
[1741547866333,1.10656692,557.48,555.73,0.29979975]
[1741547866533,1.10656692,557.47,555.74,0.29979975]
[1741547866835,1.10656692,557.46,555.76,0.35986756]
[1741547867034,1.10656692,557.45,555.77,0.29979975]
[1741547867237,1.10656692,557.5,555.78,0.29979975]
[1741547867429,1.10656692,557.49,555.79,0.29980718]
[1741547867733,1.10656692,557.48,555.8,0.29980718]
[1741547867926,1.10656692,557.47,555.81,0.29980718]
[1741547868134,0.31247895,557.51,555.82,0.29980718]
[1741547868330,1.10656692,557.5,555.83,0.29980718]
[1741547868531,1.10656692,557.49,555.77,0.29980718]
[1741547868734,1.10656692,557.48,555.78,0.29980718]
[1741547869031,1.10656692,557.47,555.79,0.29980718]
[1741547869332,1.10656692,557.46,555.8,0.29980718]
[1741547869536,1.10656692,557.45,555.81,0.29980718]
[1741547869729,1.10656692,557.44,555.82,0.29980718]
[1741547869928,1.10656692,557.43,555.83,0.29980718]
[1741547870134,1.10656692,557.42,555.84,0.29980718]
[1741547870334,1.10656692,557.47,555.85,0.29980718]
[1741547870534,1.10656692,557.46,555.86,0.29980718]
[1741547870837,1.10656692,557.45,555.87,0.29980718]
[1741547871036,1.10656692,557.44,555.88,0.29980718]
[1741547871233,5.20752361,557.45,555.88,0.29980718]
[1741547871438,6.5515304,557.44,555.89,0.29980718]
[1741547871634,5.20752361,557.43,555.89,0.29980718]
[1741547871838,5.20752361,557.42,555.9,0.29980718]
[1741547872039,5.20752361,557.41,555.91,0.29980718]
[1741547872234,2.87463073,557.4,555.92,0.29980718]
[1741547872434,2.87463073,557.39,555.93,0.29980718]
[1741547872640,3.41319114,557.38,555.94,0.29980718]
[1741547872844,2.85120768,557.37,555.95,0.29980718]
[1741547873035,2.85120768,557.36,555.96,0.29980718]
[1741547873239,2.85120768,557.35,555.97,0.29980718]
[1741547873434,1.09661834,557.34,555.98,0.29980718]
[1741547873639,0.31256596,557.43,555.99,0.29980718]
[1741547873839,0.32986868,557.42,556.0,0.29980718]
[1741547874141,0.31256596,557.43,556.01,0.29980718]
[1741547874342,0.31256596,557.43,556.02,0.29980718]
[1741547874541,0.31256596,557.43,556.03,0.29980718]
[1741547874740,0.31256596,557.43,556.04,0.29980718]
[1741547874936,0.31256596,557.43,556.05,0.29980718]
[1741547875135,0.31256596,557.43,556.06,0.29980718]
[1741547875336,0.31256596,557.43,556.07,0.29980718]
[1741547875538,0.31256596,557.43,556.08,0.29980718]
[1741547875736,0.31256596,557.43,556.09,0.29980718]
[1741547875942,0.31256596,557.43,556.1,0.29980718]
[1741547876141,0.31256596,557.43,555.76,0.35986756]
[1741547876142,0.31256596,557.43,556.11,0.29980718]
[1741547876440,0.31256596,557.43,556.12,0.29991228]
[1741547876642,0.31256596,557.43,555.77,0.29991228]
[1741547876839,0.31256596,557.43,555.78,0.29991228]
[1741547877039,0.31256596,557.43,555.79,0.29991228]
[1741547877239,0.31256596,557.43,555.8,0.29991228]
[1741547877444,0.31256596,557.43,555.81,0.29991228]
[1741547877637,2.84052946,557.53,555.83,0.35982224]
[1741547877837,2.84052946,557.52,555.84,0.29991228]
[1741547878041,2.84052946,557.51,555.85,0.29991228]
[1741547878242,1.09251133,557.5,555.83,0.35982224]
[1741547878440,0.31252526,557.52,555.84,0.29991978]
[1741547878644,0.31252526,557.52,555.85,0.29991978]
[1741547878845,0.31252526,557.52,555.86,0.29991978]
[1741547879142,0.31252526,557.52,555.87,0.29991978]
[1741547879346,0.31252526,557.52,555.88,0.29991978]
[1741547879544,0.31252526,557.52,555.89,0.29991978]
[1741547879742,0.31252526,557.52,555.9,0.29991978]
[1741547879938,0.878,557.51,555.91,0.29991978]
[1741547880142,0.878,557.51,555.92,0.29991978]
[1741547880340,0.878,557.51,555.93,0.29991978]
[1741547880545,0.878,557.51,555.94,0.29991978]
[1741547880844,0.878,557.51,555.96,0.35973811]
[1741547881045,0.3125407,557.5,555.97,0.29991978]
[1741547881546,0.3125407,557.5,555.96,0.35973811]
[1741547881845,0.3125407,557.5,555.97,0.29991524]
[1741547882253,0.3125407,557.5,555.98,0.29991524]
[1741547882441,0.3125407,557.5,555.97,0.29991524]
[1741547882643,0.3125407,557.5,555.98,0.29991524]
[1741547882842,0.3125407,557.5,555.99,0.29991524]
[1741547883046,0.32986446,557.49,556.0,0.29991524]
[1741547883246,5.50388926,557.49,555.97,0.29991524]
[1741547883442,5.1740248,557.48,555.98,0.29991524]
[1741547883645,4.63553609,557.47,555.97,0.29991524]
[1741547883844,4.63553609,557.46,555.99,0.35971869]
[1741547884149,2.84278301,557.45,556.0,0.29991524]
[1741547884350,1.09337808,557.44,556.0,0.29991524]
[1741547884545,0.31253087,557.47,556.0,0.29991524]
[1741547884950,0.31253087,557.47,556.01,0.29991524]
[1741547885143,0.31253087,557.47,556.02,0.29991524]
[1741547885342,0.31253087,557.47,556.0,0.29991524]
[1741547885548,0.31253087,557.47,556.01,0.29991524]
[1741547885745,0.31253087,557.47,556.02,0.29991524]
[1741547885945,0.31253087,557.47,556.03,0.29991524]
[1741547886145,0.31253087,557.47,556.04,0.29991524]
[1741547886349,0.31253087,557.47,556.05,0.29991524]
[1741547886552,0.878,557.51,555.99,0.35971869]
[1741547886751,0.878,557.51,556.06,0.29977497]
[1741547886952,0.31242565,557.46,556.07,0.29977497]
[1741547887152,0.31242565,557.46,556.08,0.29977497]
[1741547887349,0.31242565,557.46,556.09,0.29977497]
[1741547887553,0.31242565,557.46,556.1,0.29977497]
[1741547887751,0.31242565,557.46,556.11,0.29977497]
[1741547887953,0.31242565,557.46,556.12,0.29977497]
[1741547888150,0.31242565,557.46,556.13,0.29977497]
[1741547888454,0.31242565,557.46,556.14,0.29977497]
[1741547888757,0.31242565,557.46,556.15,0.29977497]
[1741547888960,0.31242565,557.46,556.16,0.29977497]
[1741547889154,0.31242565,557.46,556.17,0.29977497]
[1741547889654,0.31242565,557.46,556.19,0.35958934]
[1741547889858,0.31242565,557.46,556.2,0.29977497]
[1741547890054,0.31242565,557.46,556.21,0.29977497]
[1741547890262,0.31242565,557.46,556.22,0.29977497]
[1741547890462,0.31242565,557.46,556.24,0.35955702]
[1741547890764,0.31242565,557.46,556.25,0.29977497]
[1741547890957,0.31242565,557.46,556.26,0.29977497]
[1741547891158,0.31242565,557.46,556.27,0.6593126]
[1741547891356,0.31242565,557.46,556.28,0.29977497]
[1741547893165,0.31242565,557.46,556.3,0.35951824]
[1741547893362,0.31242565,557.46,556.31,0.29977497]
[1741547893563,0.31242565,557.46,556.33,0.35949885]
[1741547893760,0.31242565,557.46,556.34,0.29977497]
[1741547893963,0.31242565,557.46,556.36,0.35947947]
[1741547894165,1.092,557.45,556.37,0.29977497]
[1741547894357,1.092,557.45,556.39,0.35946009]
[1741547894563,1.092,557.45,556.4,0.29977497]
[1741547895465,1.09767804,557.44,556.4,0.29977497]
[1741547895665,1.09767804,557.43,556.4,0.29977497]
[1741547895866,1.09767804,557.42,556.4,0.29977497]
[1741547896168,2.8558791,557.41,556.4,0.29977497]
[1741547896367,1.04129001,557.39,556.4,0.29977497]
[1741547896569,1.04129001,557.33,556.4,0.29977497]
[1741547896862,1.04129001,557.31,556.39,0.35946009]
[1741547897061,1.04129001,557.27,556.39,0.35946009]
[1741547897267,2.8558791,557.26,556.39,0.35946009]
[1741547897465,9.10199308,557.25,556.39,0.35946009]
[1741547897665,8.06070307,557.24,556.39,0.35946009]
[1741547897865,8.06070307,557.23,556.39,0.35946009]
[1741547898067,9.10199308,557.22,556.39,0.35946009]
[1741547898267,9.10199308,557.21,556.39,0.35946009]
[1741547898467,4.43559917,557.2,556.39,0.35946009]
[1741547898665,1.04129001,557.15,556.39,0.35946009]
[1741547898869,2.8558791,557.14,556.39,0.35946009]
[1741547899071,1.04129001,557.11,556.39,0.35946009]
[1741547899370,1.04129001,557.07,556.39,0.35946009]
[1741547899573,5.19012309,557.06,556.39,0.35946009]
[1741547899765,8.06342537,557.05,556.39,0.35946009]
[1741547899968,8.06342537,557.04,556.39,0.35946009]
[1741547900165,8.06342537,557.03,556.39,0.35946009]
[1741547900369,8.06342537,557.02,556.39,0.35946009]
[1741547900570,8.06375814,557.01,556.39,0.35946009]
[1741547900767,5.19012309,557.0,556.39,0.35946009]
[1741547900971,5.19012309,556.99,556.39,0.35946009]
[1741547901270,5.19012309,556.98,556.39,0.35946009]
[1741547901471,5.19012309,556.97,556.39,0.35946009]
[1741547901773,5.19012309,556.96,556.39,0.35946009]
[1741547901977,5.19012309,556.95,556.39,0.35946009]
[1741547902274,8.06389636,556.94,556.39,0.35946009]
[1741547902475,5.19012309,556.93,556.39,0.35946009]
[1741547902672,3.49366189,556.94,556.39,0.35946009]
[1741547902673,5.19012309,556.92,556.39,0.35946009]
[1741547902874,8.68378498,556.91,556.39,0.35946009]
[1741547903070,5.19012309,556.9,556.39,0.35946009]
[1741547903376,5.19012309,556.89,556.39,0.35946009]
[1741547903576,5.19012309,556.88,556.39,0.35946009]
[1741547903875,5.19012309,556.87,556.39,0.35946009]
[1741547904076,4.65169303,556.86,556.39,0.35946009]
[1741547904376,5.99020185,556.85,556.39,0.35946009]
[1741547904575,2.8558791,556.84,556.39,0.35946009]
[1741547904772,2.8558791,556.83,556.39,0.35946009]
[1741547905076,1.09767804,556.82,556.39,0.35946009]
[1741547905269,1.09767804,556.81,556.39,0.35946009]
[1741547905472,0.3127865,556.84,556.39,0.35946009]
[1741547905670,1.10891664,556.83,556.39,0.35946009]
[1741547905875,0.3127865,556.84,556.39,0.35946009]
[1741547906077,1.10868636,556.83,556.39,0.35946009]
[1741547906373,0.3127865,556.84,556.39,0.35946009]
[1741547906978,1.1101062,556.83,556.39,0.35946009]
[1741547907180,0.3127865,556.84,556.39,0.35946009]
[1741547907480,1.111166,556.83,556.4,0.30009436]
[1741547907679,1.111166,556.82,556.39,0.35946009]
[1741547907878,1.11059634,556.81,556.39,0.35946009]
[1741547908176,0.31265582,556.82,556.39,0.35946009]
[1741547909175,0.31265582,556.82,556.4,0.30009692]
[1741547911176,0.31265582,556.82,556.39,0.35946009]
[1741547911882,0.31265582,556.82,556.4,0.29998841]
[1741547912280,0.31265582,556.82,556.41,0.30000953]
[1741547912585,0.31265582,556.82,556.42,0.65945024]
[1741547912877,0.31265582,556.82,556.43,0.30000953]
[1741547913784,11.62115062,557.08,556.43,0.30000953]
[1741547913981,8.10142516,557.07,556.44,0.30002993]
[1741547914182,0.31256736,556.81,556.44,0.30002993]
[1741547914381,4.68997419,557.05,556.45,0.30002993]
[1741547914583,4.68997419,557.04,556.43,0.30002993]
[1741547914881,2.89448766,557.03,556.44,0.30002993]
[1741547915084,2.89448766,557.02,556.44,0.30002993]
[1741547915283,1.11326448,557.01,556.45,0.30002993]
[1741547915481,2.90245418,557.0,556.43,0.30002993]
[1741547915679,2.90255648,556.99,556.44,0.30002993]
[1741547915882,4.69819306,556.98,556.45,0.30002695]
[1741547916082,1.1,557.01,556.42,0.35944071]
[1741547916083,5.236909,556.97,556.42,0.35944071]
[1741547916285,4.69819306,556.96,556.43,0.30006014]
[1741547916484,2.90255648,556.95,556.43,0.30006014]
[1741547916681,2.47375149,556.94,556.43,0.30006014]
[1741547916984,1.11326448,556.93,556.43,0.30006014]
[1741547917185,1.11326448,556.92,556.43,0.30006014]
[1741547917380,1.11326448,556.91,556.43,0.30006014]
[1741547917589,1.11326448,556.9,556.43,0.30006014]
[1741547917879,1.11326448,556.89,556.43,0.30006014]
[1741547918085,2.909042,556.88,556.42,0.35944071]
[1741547918285,1.11326448,556.87,556.42,0.35944071]
[1741547918585,1.11326448,556.86,556.42,0.35944071]
[1741547918780,2.90614595,556.85,556.43,0.30008396]
[1741547918983,4.70193019,556.84,556.43,0.30008396]
[1741547919184,4.70193019,556.83,556.43,0.30008396]
[1741547919383,2.90601563,556.82,556.43,0.30008396]
[1741547919579,2.90601563,556.82,556.42,0.35944071]
[1741547919580,4.7113971,556.81,556.42,0.35944071]
[1741547919888,4.7113971,556.8,556.42,0.35944071]
[1741547920186,4.7113971,556.79,556.42,0.35944071]
[1741547920385,1.12124644,556.78,556.42,0.35944071]
[1741547920586,1.12124644,556.77,556.42,0.35944071]
[1741547920785,1.12124644,556.76,556.42,0.35944071]
[1741547920985,1.12124644,556.75,556.42,0.35944071]
[1741547921187,1.12124644,556.74,556.42,0.35944071]
[1741547921387,1.12124644,556.73,556.42,0.35944071]
[1741547921686,0.31266425,556.81,556.42,0.35944071]
[1741547921687,3.59149689,556.8,556.42,0.35944071]
[1741547921988,4.71343614,556.79,556.42,0.35944071]
[1741547922190,4.71343614,556.78,556.42,0.35944071]
[1741547922385,1.12193925,556.77,556.42,0.35944071]
[1741547922591,0.31266425,556.81,556.42,0.35944071]
[1741547922592,1.12193925,556.76,556.42,0.35944071]
[1741547922887,1.06389474,556.96,556.42,0.35944071]
[1741547922888,1.12193925,556.75,556.42,0.35944071]
[1741547923189,1.12193925,556.74,556.42,0.35944071]
[1741547923390,1.12193925,556.73,556.42,0.35944071]
[1741547923590,1.12193925,556.72,556.42,0.35944071]
[1741547923889,0.31278228,556.72,556.42,0.35944071]
[1741547928697,7.00453327,556.9,556.42,0.35944071]
[1741547928994,0.31274714,556.71,556.42,0.35944071]
[1741547929194,7.00477598,556.88,556.42,0.35944071]
[1741547929395,8.12760691,556.87,556.42,0.35944071]
[1741547929594,11.14069404,556.86,556.42,0.35944071]
[1741547929793,4.71496995,556.85,556.42,0.35944071]
[1741547929995,8.26685786,556.84,556.42,0.35944071]
[1741547930196,4.71496995,556.83,556.42,0.35944071]
[1741547930495,8.26685786,556.82,556.42,0.35944071]
[1741547930690,4.71496995,556.81,556.42,0.35944071]
[1741547930889,2.91897854,556.8,556.42,0.35944071]
[1741547931093,2.48898786,556.79,556.42,0.35944071]
[1741547931292,1.12283093,556.78,556.42,0.35944071]
[1741547931495,1.12283093,556.77,556.42,0.35944071]
[1741547931696,1.12283093,556.76,556.42,0.35944071]
[1741547931994,1.12283093,556.75,556.42,0.35944071]
[1741547932201,1.12283093,556.74,556.42,0.35944071]
[1741547932391,0.31276541,556.76,556.42,0.35944071]
[1741547932587,1.12200898,556.75,556.42,0.35944071]
[1741547932794,1.12200898,556.74,556.42,0.35944071]
[1741547932995,0.31276541,556.76,556.42,0.35944071]
[1741547933196,1.12215487,556.75,556.42,0.35944071]
[1741547933387,1.12219807,556.74,556.42,0.35944071]
[1741547933591,1.12219807,556.73,556.42,0.35944071]
[1741547933794,1.12219807,556.72,556.42,0.35944071]
[1741547934089,0.31276541,556.76,556.42,0.35944071]
[1741547934090,1.12219807,556.71,556.42,0.35944071]
[1741547934295,2.48780379,556.7,556.42,0.35944071]
[1741547934495,1.36560572,556.7,555.82,1.32397652]
[1741547934697,1.122409,556.69,555.84,0.35981577]
[1741547934894,1.12251004,556.68,555.85,0.30014403]
[1741547935094,0.31277103,556.69,555.87,0.35979635]
[1741547935297,1.12280502,556.68,555.88,0.30014403]
[1741547935492,1.12280502,556.67,555.89,0.35978341]
[1741547935697,1.12280457,556.66,555.89,0.35978341]
[1741547935892,1.19,556.67,555.9,0.30014403]
[1741547936098,1.12279624,556.66,555.91,0.35977046]
[1741547936292,1.19,556.67,555.92,0.30014403]
[1741547936496,1.12285141,556.66,555.93,0.35975752]
[1741547936797,1.19,556.67,555.94,0.30014403]
[1741547936998,1.12286809,556.66,555.95,0.35974458]
[1741547937195,1.19,556.67,555.96,0.30014403]
[1741547937496,1.12307928,556.66,555.97,0.35973164]
[1741547937799,1.19,556.67,555.98,0.30014403]
[1741547938002,0.31276541,556.65,555.99,0.35971869]
[1741547938295,0.31276541,556.65,556.0,0.30014403]
[1741547938492,0.31276541,556.65,556.01,0.35970576]
[1741547938692,0.31276541,556.65,556.02,0.30014403]
[1741547938898,0.31276541,556.65,556.03,0.30016071]
[1741547939095,0.31276541,556.65,556.02,0.30016071]
[1741547939292,0.31276541,556.65,556.03,0.30016071]
[1741547939492,0.31276541,556.65,556.01,0.35970576]
[1741547939493,0.31276541,556.65,556.04,0.30016071]
[1741547939699,1.12266617,556.64,556.05,0.30016071]
[1741547939900,1.12266617,556.63,556.02,0.30016071]
[1741547940120,1.12266617,556.62,556.03,0.65985353]
[1741547940294,0.31276541,556.65,556.04,0.30016071]
[1741547940698,1.19,556.67,556.05,0.35967988]
[1741547940900,1.19,556.67,556.06,0.30016071]
[1741547941099,0.31274855,556.64,556.07,0.35966694]
[1741547941294,0.31274855,556.64,556.08,0.30016071]
[1741547941495,0.31274855,556.64,556.09,0.35965401]
[1741547941699,0.31274855,556.64,556.1,0.30016071]
[1741547941898,0.31274855,556.64,556.11,0.35964107]
[1741547942200,0.31274855,556.64,556.12,0.30016071]
[1741547942394,0.31274855,556.64,556.13,0.35962814]
[1741547942595,0.31274855,556.64,556.14,0.30016071]
[1741547942798,0.31274855,556.64,556.14,0.65978238]
[1741547942994,0.31274855,556.64,556.15,0.30016071]
[1741547943701,1.19,556.67,556.15,0.30016071]
[1741547943997,0.31275276,556.63,556.15,0.30016071]
[1741547945901,0.31275276,556.63,556.14,0.35962167]
[1741547947606,1.12253984,556.62,556.14,0.35962167]
[1741547947806,2.91857978,556.61,555.67,1.32397652]
[1741547948006,4.7156951,556.6,555.68,0.66022965]
[1741547948306,7.59109649,556.59,555.69,0.30031028]
[1741547948607,4.7156951,556.58,555.69,0.30031028]
[1741547948909,0.31275276,556.63,555.69,0.30031028]
[1741547948910,11.1406011,556.57,555.69,0.30031028]
[1741547949208,8.1303074,556.56,555.7,0.30031786]
[1741547949404,11.67975627,556.55,555.69,0.30031786]
[1741547949606,8.1303074,556.54,555.69,0.30031786]
[1741547949808,8.1303074,556.53,555.69,0.30031786]
[1741547950009,8.1303074,556.52,555.69,0.30031786]
[1741547950203,8.1303074,556.51,555.69,0.30031786]
[1741547950404,8.1303074,556.5,555.69,0.30031786]
[1741547950604,8.1303074,556.49,555.69,0.30031786]
[1741547950806,0.31293416,556.54,555.69,0.30031786]
[1741547950807,8.1303074,556.48,555.69,0.30031786]
[1741547951110,8.1303074,556.47,555.69,0.30031786]
[1741547951409,8.1303074,556.46,555.69,0.30031786]
[1741547951607,11.67975627,556.45,555.69,0.30031786]
[1741547951804,8.12478052,556.44,555.69,0.30031786]
[1741547952011,8.12478052,556.43,555.69,0.30031786]
[1741547952209,8.12478052,556.42,555.69,0.30031786]
[1741547952405,8.12478052,556.41,555.69,0.30031786]
[1741547952611,8.12478052,556.4,555.69,0.30031786]
[1741547952814,8.12478052,556.39,555.69,0.30031786]
[1741547953011,8.12478052,556.38,555.69,0.30031786]
[1741547953310,8.12478052,556.37,555.69,0.30031786]
[1741547953504,11.67422939,556.36,555.69,0.30031786]
[1741547953811,8.12478052,556.35,555.69,0.30031786]
[1741547954008,8.12478052,556.34,555.68,0.35991937]
[1741547954208,8.12478052,556.33,555.69,0.30051023]
[1741547954406,3.54944887,556.34,555.68,0.35991937]
[1741547954407,8.12478052,556.32,555.68,0.35991937]
[1741547954605,8.12478052,556.31,555.69,0.30051094]
[1741547954811,8.12478052,556.3,555.69,0.30051094]
[1741547955012,8.12478052,556.3,555.68,0.35991937]
[1741547955013,8.12478052,556.29,555.68,0.35991937]
[1741547955206,8.12478052,556.28,555.68,0.35991937]
[1741547955405,5.24931753,556.27,555.68,0.35991937]
[1741547955607,2.91287311,556.26,555.68,0.35991937]
[1741547955911,1.37105944,556.26,555.69,0.30048599]
[1741547956110,1.37105944,556.26,555.68,0.35991937]
[1741547956311,1.37105944,556.26,555.69,0.30043493]
[1741547961616,1.37105944,556.26,555.7,0.30036275]
[1741547961816,1.058,556.26,555.69,0.30036275]
[1741547962117,0.31295668,556.25,555.7,0.30036275]
[1741547962314,0.31295668,556.25,555.71,0.30036275]
[1741547962515,0.31295668,556.25,555.69,0.30036275]
[1741547962710,0.31295668,556.25,555.7,0.30036275]
[1741547963015,0.31295668,556.25,555.71,0.30036275]
[1741547963217,0.31295668,556.25,555.68,0.35991937]
[1741547963516,0.31295668,556.25,555.69,0.30037919]
[1741547963709,1.11657441,556.24,555.69,0.30037919]
[1741547963913,0.31295668,556.25,555.69,0.30037919]
[1741547964115,1.11658701,556.24,555.69,0.30037919]
[1741547964317,0.31295668,556.25,555.69,0.30037919]
[1741547966212,1.1166373,556.24,555.69,0.30037919]
[1741547966417,1.11639355,556.23,555.69,0.30037919]
[1741547966612,0.31295668,556.25,555.69,0.30037919]
[1741547966813,1.11606944,556.24,555.69,0.30037919]
[1741547967010,1.11606944,556.23,555.69,0.30037919]
[1741547967211,0.31295668,556.25,555.69,0.30037919]
[1741547967414,1.1160361,556.24,555.69,0.30037919]
[1741547967613,1.1160361,556.23,555.69,0.30037919]
[1741547967812,1.1160361,556.22,555.69,0.30037919]
[1741547968118,1.058,556.26,555.69,0.30037919]
[1741547968119,1.1160361,556.21,555.69,0.30037919]
[1741547968314,1.1160361,556.2,555.69,0.30037919]
[1741547968516,1.1160361,556.19,555.69,0.30037919]
[1741547968714,1.1160361,556.18,555.7,0.30045996]
[1741547968914,0.31301579,556.23,555.69,0.30045996]
[1741547969115,1.11550045,556.22,555.69,0.30045996]
[1741547969312,1.11550045,556.21,555.69,0.30045996]
[1741547969513,1.11550045,556.2,555.69,0.30045996]
[1741547969717,1.11550045,556.19,555.69,0.30045996]
[1741547970021,1.11550045,556.18,555.69,0.30045996]
[1741547970212,1.11550045,556.17,555.69,0.30045996]
[1741547970416,0.31301579,556.23,555.69,0.30045996]
[1741547970616,1.11480596,556.22,555.69,0.30045996]
[1741547970818,1.11480596,556.21,555.69,0.30045996]
[1741547971115,1.11480596,556.2,555.69,0.30045996]
[1741547971319,0.31301579,556.23,555.69,0.30045996]
[1741547971820,1.11466516,556.22,555.69,0.30045996]
[1741547972014,0.31301579,556.23,555.69,0.30045996]
[1741547972214,1.11474002,556.22,555.69,0.30045996]
[1741547972420,0.31301579,556.23,555.7,0.30043903]
[1741547972620,0.31301579,556.23,555.68,0.35991937]
[1741547972621,0.31301579,556.23,555.71,0.30043903]
[1741547972817,1.11485338,556.22,555.69,0.30043903]
[1741547973018,0.31301579,556.23,555.7,0.30043903]
[1741547973220,1.11486452,556.22,555.69,0.30043903]
[1741547973415,0.31301579,556.23,555.7,0.30043903]
[1741547973614,1.11497767,556.22,555.69,0.30043903]
[1741547973816,1.11497767,556.21,555.7,0.30043903]
[1741547974021,1.11497767,556.2,555.69,0.30043903]
[1741547974217,1.11497767,556.19,555.7,0.30043903]
[1741547974414,0.31300171,556.22,555.69,0.30043903]
[1741547974415,1.11497767,556.18,555.69,0.30043903]
[1741547974617,0.31300171,556.22,555.7,0.30043903]
[1741547974816,1.11478338,556.21,555.69,0.30043903]
[1741547975016,0.31300171,556.22,555.69,0.30043903]
[1741547976720,1.058,556.26,555.7,0.35990642]
[1741547976921,1.35723369,556.38,555.71,0.30043903]
[1741547976922,0.31297356,556.21,555.71,0.30043903]
[1741547977721,0.31297356,556.21,555.7,0.35990642]
[1741547978022,0.31297356,556.21,555.71,0.30038545]
[1741547978221,0.31297356,556.21,555.72,0.35989347]
[1741547978424,0.31297356,556.21,555.73,0.30038545]
[1741547979423,0.31297356,556.21,555.72,0.35989347]
[1741547979725,0.31297356,556.21,555.73,0.30033491]
[1741547980122,1.016,556.2,555.74,0.35988051]
[1741547980524,1.016,556.2,555.75,0.30033491]
[1741547983126,1.016,556.2,555.76,0.30025865]
[1741547983322,1.016,556.2,555.75,0.30025865]